fUSD/lending_fUSD_20241205
["ID","MTS","AMOUNT","RATE_DAILY","PERIOD"]
[344393087,1733407831749,-500.0,7.499e-05,2]
[344393088,1733407831760,-500.0,7.499e-05,2]
[344393089,1733407831771,-374.48,7.499e-05,2]
[344393090,1733407831782,-500.0,7.499e-05,2]
[344393091,1733407831793,-500.0,7.499e-05,2]
[344393092,1733407831804,-306.96,7.499e-05,2]
[344393093,1733407831815,-500.0,7.499e-05,2]
[344393094,1733407831827,-500.0,7.499e-05,2]
[344393095,1733407831838,-500.0,7.499e-05,2]
[344393096,1733407831848,-509.8,7.499e-05,2]
[344393097,1733407831860,-500.0,7.499e-05,2]
[344393098,1733407831871,-531.44662904,7.499e-05,2]
[344393099,1733407831883,-500.0,7.499e-05,2]
[344393100,1733407831895,-171.77,7.499e-05,2]
[344393101,1733407831909,-500.0,7.499e-05,2]
[344393102,1733407831920,-500.0,7.499e-05,2]
[344393103,1733407831931,-500.0,7.499e-05,2]
[344393104,1733407831942,-500.0,7.499e-05,2]
[344393105,1733407831953,-411.92,7.499e-05,2]
[344393106,1733407831964,-500.0,7.499e-05,2]
[344393107,1733407831975,-500.47145976,7.499e-05,2]
[344393108,1733407831987,-500.0,7.499e-05,2]
[344393109,1733407831998,-564.12860918,7.499e-05,2]
[344393110,1733407832008,-570.14,7.499e-05,2]
[344393111,1733407832019,-500.0,7.499e-05,2]
[344393112,1733407832028,-469.44,7.499e-05,2]
[344393113,1733407832039,-530.58,7.499e-05,2]
[344393114,1733407832052,-500.0,7.499e-05,2]
[344393115,1733407832066,-500.0,7.499e-05,2]
[344393116,1733407832077,-500.0,7.499e-05,2]
[344393117,1733407832087,-342.6,7.499e-05,2]
[344393118,1733407832098,-500.0,7.499e-05,2]
[344393119,1733407832110,-502.81091269,7.499e-05,2]
[344393120,1733407832123,-500.0,7.499e-05,2]
[344393121,1733407832133,-500.0,7.499e-05,2]
[344393122,1733407832144,-500.0,7.499e-05,2]
[344393123,1733407832155,-521.37,7.499e-05,2]
[344393124,1733407832166,-501.22264902,7.499e-05,2]
[344393125,1733407832176,-544.59,7.499e-05,2]
[344393126,1733407832188,-500.0,7.499e-05,2]
[344393127,1733407832199,-500.0,7.499e-05,2]
[344393128,1733407832211,-500.0,7.499e-05,2]
[344393129,1733407832222,-399.78,7.499e-05,2]
[344393130,1733407832233,-500.0,7.499e-05,2]
[344393131,1733407832246,-226.16937739,7.499e-05,2]
[344393132,1733407832257,-500.0,7.499e-05,2]
[344393133,1733407832268,-500.0,7.499e-05,2]
[344393134,1733407832278,-485.51,7.499e-05,2]
[344393135,1733407832288,-197.14,7.499e-05,2]
[344393136,1733407832299,-500.0,7.499e-05,2]
[344393137,1733407832309,-500.0,7.499e-05,2]
[344393138,1733407832320,-299.28694019,7.499e-05,2]
[344393139,1733407832331,-500.0,7.499e-05,2]
[344393140,1733407832343,-305.38,7.499e-05,2]
[344393141,1733407832354,-500.0,7.499e-05,2]
[344393142,1733407832365,-500.0,7.499e-05,2]
[344393143,1733407832375,-500.0,7.499e-05,2]
[344393144,1733407832386,-500.0,7.499e-05,2]
[344393145,1733407832396,-502.05296852,7.499e-05,2]
[344393146,1733407832408,-503.98350182,7.499e-05,2]
[344393147,1733407832418,-500.0,7.499e-05,2]
[344393148,1733407832428,-500.0,7.499e-05,2]
[344393149,1733407832439,-539.93,7.499e-05,2]
[344393150,1733407832450,-500.0,7.499e-05,2]
[344393151,1733407832461,-501.59262807,7.499e-05,2]
[344393152,1733407832472,-500.0,7.499e-05,2]
[344393153,1733407832483,-350.74,7.499e-05,2]
[344393154,1733407832500,-500.0,7.499e-05,2]
[344393155,1733407832521,-500.0,7.499e-05,2]
[344393156,1733407832533,-500.0,7.499e-05,2]
[344393157,1733407832543,-500.0,7.499e-05,2]
[344393158,1733407832554,-500.0,7.499e-05,2]
[344393159,1733407832565,-500.0,7.499e-05,2]
[344393160,1733407832576,-512.49,7.499e-05,2]
[344393161,1733407832586,-500.0,7.499e-05,2]
[344393162,1733407832597,-385.76189309,7.499e-05,2]
[344393163,1733407832608,-500.0,7.499e-05,2]
[344393164,1733407832620,-510.7007551,7.499e-05,2]
[344393165,1733407832631,-500.0,7.499e-05,2]
[344393166,1733407832642,-339.51,7.499e-05,2]
[344393167,1733407832652,-500.0,7.499e-05,2]
[344393168,1733407832663,-605.91,7.499e-05,2]
[344393169,1733407832673,-500.0,7.499e-05,2]
[344393170,1733407832683,-500.0,7.499e-05,2]
[344393171,1733407832695,-500.0,7.499e-05,2]
[344393172,1733407832706,-398.74,7.499e-05,2]
[344393173,1733407832716,-502.03004117,7.499e-05,2]
[344393174,1733407832726,-500.0,7.499e-05,2]
[344393175,1733407832737,-500.0,7.499e-05,2]
[344393176,1733407832747,-500.0,7.499e-05,2]
[344393177,1733407832757,-500.0,7.499e-05,2]
[344393178,1733407832767,-157.5,7.499e-05,2]
[344393179,1733407832777,-500.0,7.499e-05,2]
[344393180,1733407832787,-500.0,7.499e-05,2]
[344393181,1733407832797,-500.0,7.499e-05,2]
[344393182,1733407832807,-500.0,7.499e-05,2]
[344393183,1733407832817,-500.0,7.499e-05,2]
[344393184,1733407832827,-193.43,7.499e-05,2]
[344393185,1733407832837,-546.75,7.499e-05,2]
[344393186,1733407832847,-500.0,7.499e-05,2]
[344393187,1733407832857,-500.0,7.499e-05,2]
[344393188,1733407832867,-500.0,7.499e-05,2]
[344393189,1733407832877,-500.0,7.499e-05,2]
[344393190,1733407832887,-603.61,7.499e-05,2]
[344393191,1733407832897,-500.0,7.499e-05,2]
[344393192,1733407832907,-500.0,7.499e-05,2]
[344393193,1733407832918,-500.0,7.499e-05,2]
[344393194,1733407832929,-379.29,7.499e-05,2]
[344393195,1733407832939,-500.91181714,7.499e-05,2]
[344393196,1733407832949,-500.0,7.499e-05,2]
[344393197,1733407832959,-500.0,7.499e-05,2]
[344393198,1733407832969,-500.0,7.499e-05,2]
[344393199,1733407832978,-178.52,7.499e-05,2]
[344393200,1733407832989,-500.0,7.499e-05,2]
[344393201,1733407832999,-500.0,7.499e-05,2]
[344393202,1733407833009,-500.0,7.499e-05,2]
[344393203,1733407833019,-500.0,7.499e-05,2]
[344393204,1733407833030,-372.94,7.499e-05,2]
[344393205,1733407833040,-500.0,7.499e-05,2]
[344393206,1733407833050,-206.49679009,7.499e-05,2]
[344393207,1733407833061,-500.0,7.499e-05,2]
[344393208,1733407833073,-647.5455057,7.499e-05,2]
[344393209,1733407833084,-75625.36191403,7.5e-05,2]
[344393210,1733407833099,-620.31264426,7.5e-05,2]
[344393211,1733407833126,-276.60772769,7.5e-05,2]
[344393212,1733407833138,-3152.83263684,7.5e-05,2]
[344393213,1733407833711,-2056.0,7.5e-05,2]
[344393476,1733407837583,-12.92088688,7.499e-05,2]
[344393493,1733407837742,-487.07911312,7.499e-05,2]
[344393495,1733407837752,-500.0,7.499e-05,2]
[344393497,1733407837762,-214.62088693,7.5e-05,2]
[344393557,1733407839423,-500.0,7.499e-05,2]
[344393558,1733407839433,-500.0,7.499e-05,2]
[344393559,1733407839443,-500.0,7.499e-05,2]
[344393561,1733407839452,-500.0,7.499e-05,2]
[344393562,1733407839462,-58.2562,7.499e-05,2]
[344393563,1733407839483,-441.7438,7.499e-05,2]
[344393564,1733407839495,-27959.1562,7.5e-05,2]
[344393565,1733407839506,-2791.77,7.5e-05,2]
[344393566,1733407839717,-985.07995557,7.5e-05,2]
[344393567,1733407839730,-1451.88350013,7.5e-05,2]
[344393568,1733407839744,-2056.0395547,7.5e-05,2]
[344393569,1733407839866,-960.0,7.5e-05,2]
[344393570,1733407839878,-2404.03265,7.5e-05,2]
[344393578,1733407842589,-500.0,7.499e-05,2]
[344393579,1733407842599,-94.743365,7.499e-05,2]
[344393580,1733407842648,-405.256635,7.499e-05,2]
[344393581,1733407842658,-500.0,7.499e-05,2]
[344393582,1733407842667,-500.0,7.499e-05,2]
[344393583,1733407842676,-500.0,7.499e-05,2]
[344393584,1733407842686,-500.0,7.499e-05,2]
[344393585,1733407842696,-500.0,7.499e-05,2]
[344393586,1733407842705,-500.0,7.499e-05,2]
[344393587,1733407842715,-500.0,7.499e-05,2]
[344393588,1733407842725,-500.0,7.499e-05,2]
[344393589,1733407842734,-500.0,7.499e-05,2]
[344393590,1733407842745,-500.0,7.499e-05,2]
[344393591,1733407842759,-500.0,7.499e-05,2]
[344393592,1733407842770,-500.0,7.499e-05,2]
[344393593,1733407842780,-500.0,7.499e-05,2]
[344393594,1733407842790,-55464.92181578,7.5e-05,2]
[344393595,1733407842830,-500.0,7.499e-05,2]
[344393596,1733407842843,-500.0,7.499e-05,2]
[344393597,1733407842853,-3227.06765754,7.5e-05,2]
[344393598,1733407842865,-6134.68861293,7.5e-05,2]
[344393599,1733407842877,-64619.6242436,7.5e-05,2]
[344393600,1733407842887,-555.0,7.5e-05,2]
[344393601,1733407842896,-409357.784278,7.5e-05,2]
[344393602,1733407842908,-75117.99924,7.5e-05,2]
[344393603,1733407842919,-1103.40827791,7.5e-05,2]
[344393613,1733407845467,-500.0,7.499e-05,2]
[344393614,1733407845477,-500.0,7.499e-05,2]
[344393615,1733407845487,-500.0,7.499e-05,2]
[344393616,1733407845500,-190.9,7.499e-05,2]
[344393617,1733407845758,-279.78,7.499e-05,2]
[344393618,1733407845786,-58.17,7.499e-05,2]
[344393620,1733407845796,-500.0,7.499e-05,2]
[344393621,1733407845806,-500.0,7.499e-05,2]
[344393622,1733407845816,-500.0,7.499e-05,2]
[344393623,1733407845826,-500.0,7.499e-05,2]
[344393624,1733407845836,-500.0,7.499e-05,2]
[344393625,1733407845846,-500.0,7.499e-05,2]
[344393626,1733407845856,-437526.67607905,7.5e-05,2]
[344393627,1733407845881,-534.85,7.499e-05,2]
[344393628,1733407845892,-125.66501,7.5e-05,2]
[344393629,1733407845904,-18536.89028654,7.5e-05,2]
[344393630,1733407845916,-97624.86812084,7.5e-05,2]
[344393631,1733407845946,-500.0,7.499e-05,2]
[344393632,1733407845957,-14201.523196,7.5e-05,2]
[344393633,1733407845975,-515.35,7.5e-05,2]
[344393645,1733407855046,1000.0,6.3e-05,2]
[344393646,1733407857203,2100.0,6.4e-05,2]
[344393647,1733407859531,3200.0,6.5e-05,2]
[344393648,1733407861442,4200.0,6.6e-05,2]
[344393649,1733407863576,5300.0,6.7e-05,2]
[344393650,1733407865751,1000.0,6.8e-05,2]
[344393651,1733407867859,1000.0,6.9e-05,2]
[344393652,1733407869968,1000.0,7e-05,2]
[344393655,1733407978881,500.0,6.72e-05,2]
[344393656,1733408108835,-2000.0,0.00018284,31]
[344393657,1733408108865,-245.4,0.000184,31]
[344393658,1733408108892,-245.4,0.000184,31]
[344393659,1733408108918,-245.4,0.000184,31]
[344393660,1733408108945,-245.4,0.000184,31]
[344393661,1733408108971,-245.4,0.000184,31]
[344393662,1733408108996,-245.4,0.000184,31]
[344393663,1733408109021,-245.4,0.000184,31]
[344393664,1733408109046,-245.4,0.000184,31]
[344393665,1733408109071,-245.4,0.000184,31]
[344393666,1733408109098,-245.4,0.000184,31]
[344393667,1733408109123,-245.4,0.000184,31]
[344393668,1733408109148,-245.4,0.000184,31]
[344393669,1733408109177,-245.4,0.000184,31]
[344393670,1733408109203,-245.4,0.000184,31]
[344393671,1733408109229,-245.4,0.000184,31]
[344393672,1733408109256,-245.4,0.000184,31]
[344393673,1733408135115,23900.0,6.881e-05,2]
[344393674,1733408166555,-2000.0,0.00015948,30]
[344393675,1733408166586,-1440.35,0.00016658,30]
[344393676,1733408166639,-5020.26115,0.00018472,30]
[344393677,1733408166677,-1440.35,0.00019242,30]
[344393678,1733408166698,-159.371522,0.00019242,30]
[344393679,1733408166718,-221.376981,0.00019242,30]
[344393680,1733408166749,-1576.66829561,0.0002,30]
[344393681,1733408166780,-25412.33284721,0.0002,30]
[344393684,1733408223481,161.33,6.841e-05,2]
[344393685,1733408229798,183.99,6.802e-05,2]
[344393688,1733408421617,1847.39,6.804e-05,2]
[344393689,1733408429164,200.0,6.804e-05,2]
[344393691,1733408504599,4462.65,6.787e-05,2]
[344393692,1733408512140,384.15,6.787e-05,2]
[344393695,1733408580254,787.68,6.756e-05,2]
[344393699,1733408615305,250.0,6.822e-05,2]
[344393700,1733408623913,1852.42,6.858e-05,2]
[344393701,1733408657714,200.0,6.857e-05,2]
[344393707,1733408847536,250.0,6.78e-05,2]
[344393716,1733408903782,1500.0,6.78e-05,2]
[344393718,1733408927200,172.07,6.78e-05,2]
[344393751,1733409031728,-7455.0,7.203e-05,2]
[344393752,1733409031737,-500.0,7.342e-05,2]
[344393753,1733409031747,-2500.0,7.399e-05,2]
[344393754,1733409031756,-1203.92160229,7.4e-05,2]
[344393755,1733409031766,-1964.69446158,7.4e-05,2]
[344393756,1733409031775,-500.0,7.425e-05,2]
[344393757,1733409031784,-280.90166061,7.473e-05,2]
[344393758,1733409031794,-500.0,7.473e-05,2]
[344393759,1733409031803,-162.4422991,7.473e-05,2]
[344393760,1733409031812,-500.0,7.473e-05,2]
[344393761,1733409031823,-150.0,7.497e-05,2]
[344393762,1733409031833,-474.38939898,7.498e-05,2]
[344393763,1733409031843,-500.0,7.498e-05,2]
[344393764,1733409031852,-500.0,7.498e-05,2]
[344393765,1733409031861,-614.64,7.498e-05,2]
[344393766,1733409031870,-500.0,7.498e-05,2]
[344393767,1733409031880,-500.0,7.498e-05,2]
[344393768,1733409031889,-500.0,7.498e-05,2]
[344393769,1733409031899,-500.0,7.498e-05,2]
[344393770,1733409031908,-501.720494,7.498e-05,2]
[344393771,1733409031918,-519.35,7.498e-05,2]
[344393772,1733409031928,-500.0,7.498e-05,2]
[344393781,1733409032205,-500.0,7.498e-05,2]
[344393782,1733409032215,-503.21078085,7.498e-05,2]
[344393783,1733409032225,-500.0,7.498e-05,2]
[344393784,1733409032234,-500.0,7.498e-05,2]
[344393786,1733409032244,-500.0,7.498e-05,2]
[344393788,1733409032254,-500.0,7.498e-05,2]
[344393790,1733409032263,-495.91216254,7.498e-05,2]
[344393791,1733409032273,-500.0,7.498e-05,2]
[344393792,1733409032282,-643.86,7.498e-05,2]
[344393793,1733409032292,-500.0,7.498e-05,2]
[344393794,1733409032302,-500.0,7.498e-05,2]
[344393795,1733409032311,-500.0,7.498e-05,2]
[344393796,1733409032329,-505.50368341,7.498e-05,2]
[344393797,1733409032339,-500.0,7.498e-05,2]
[344393798,1733409032349,-500.0,7.498e-05,2]
[344393799,1733409032359,-500.0,7.498e-05,2]
[344393800,1733409032368,-500.0,7.498e-05,2]
[344393801,1733409032378,-500.0,7.498e-05,2]
[344393802,1733409032387,-500.0,7.498e-05,2]
[344393803,1733409032397,-500.0,7.498e-05,2]
[344393804,1733409032407,-505.13663749,7.498e-05,2]
[344393805,1733409032421,-500.0,7.498e-05,2]
[344393806,1733409032430,-500.0,7.498e-05,2]
[344393807,1733409032440,-500.82881832,7.498e-05,2]
[344393808,1733409032451,-500.0,7.498e-05,2]
[344393809,1733409032460,-500.0,7.498e-05,2]
[344393810,1733409032469,-500.0,7.498e-05,2]
[344393811,1733409032478,-500.0,7.498e-05,2]
[344393812,1733409032490,-500.0,7.498e-05,2]
[344393813,1733409032500,-500.0,7.498e-05,2]
[344393814,1733409032510,-500.0,7.498e-05,2]
[344393815,1733409032520,-500.0,7.498e-05,2]
[344393816,1733409032530,-500.0,7.498e-05,2]
[344393817,1733409032541,-500.0,7.498e-05,2]
[344393818,1733409032551,-500.0,7.498e-05,2]
[344393819,1733409032560,-500.0,7.498e-05,2]
[344393820,1733409032573,-500.0,7.498e-05,2]
[344393821,1733409032582,-500.0,7.498e-05,2]
[344393822,1733409032591,-500.0,7.498e-05,2]
[344393823,1733409032601,-500.50341735,7.498e-05,2]
[344393824,1733409032610,-500.0,7.498e-05,2]
[344393825,1733409032619,-500.0,7.498e-05,2]
[344393826,1733409032629,-500.0,7.498e-05,2]
[344393827,1733409032639,-500.0,7.498e-05,2]
[344393828,1733409032648,-601.35,7.498e-05,2]
[344393829,1733409032657,-500.0,7.498e-05,2]
[344393830,1733409032666,-500.0,7.498e-05,2]
[344393831,1733409032677,-500.0,7.498e-05,2]
[344393832,1733409032686,-500.0,7.498e-05,2]
[344393833,1733409032696,-640.76,7.498e-05,2]
[344393834,1733409032706,-525.75,7.498e-05,2]
[344393835,1733409032716,-500.0,7.498e-05,2]
[344393836,1733409032726,-500.0,7.498e-05,2]
[344393837,1733409032735,-531.48,7.498e-05,2]
[344393838,1733409032745,-500.0,7.498e-05,2]
[344393839,1733409032754,-500.0,7.498e-05,2]
[344393840,1733409032764,-500.0,7.498e-05,2]
[344393841,1733409032775,-500.0,7.498e-05,2]
[344393842,1733409032785,-570.95,7.498e-05,2]
[344393843,1733409032794,-500.0,7.498e-05,2]
[344393844,1733409032804,-500.0,7.498e-05,2]
[344393845,1733409032813,-500.0,7.498e-05,2]
[344393846,1733409032825,-500.0,7.498e-05,2]
[344393847,1733409032835,-501.20033207,7.498e-05,2]
[344393848,1733409032844,-500.0,7.498e-05,2]
[344393849,1733409032854,-500.0,7.498e-05,2]
[344393850,1733409032863,-500.0,7.498e-05,2]
[344393851,1733409032873,-500.0,7.498e-05,2]
[344393852,1733409032882,-500.0,7.498e-05,2]
[344393853,1733409032891,-500.0,7.498e-05,2]
[344393854,1733409032901,-500.0,7.498e-05,2]
[344393855,1733409032910,-500.0,7.498e-05,2]
[344393856,1733409032919,-500.0,7.498e-05,2]
[344393857,1733409032928,-500.0,7.498e-05,2]
[344393858,1733409032938,-500.0,7.498e-05,2]
[344393859,1733409032947,-500.0,7.498e-05,2]
[344393860,1733409032956,-500.0,7.498e-05,2]
[344393861,1733409032965,-500.0,7.498e-05,2]
[344393862,1733409032975,-500.0,7.498e-05,2]
[344393863,1733409032984,-500.0,7.498e-05,2]
[344393864,1733409032994,-500.0,7.498e-05,2]
[344393865,1733409033003,-500.0,7.498e-05,2]
[344393866,1733409033012,-500.0,7.498e-05,2]
[344393867,1733409033022,-500.0,7.498e-05,2]
[344393868,1733409033031,-539.83,7.498e-05,2]
[344393869,1733409033042,-500.0,7.498e-05,2]
[344393870,1733409033051,-500.0,7.498e-05,2]
[344393871,1733409033061,-500.0,7.498e-05,2]
[344393872,1733409033074,-500.0,7.498e-05,2]
[344393873,1733409033084,-500.0,7.498e-05,2]
[344393874,1733409033094,-538.90459351,7.498e-05,2]
[344393875,1733409033103,-500.0,7.498e-05,2]
[344393876,1733409033113,-500.0,7.498e-05,2]
[344393877,1733409033122,-500.0,7.498e-05,2]
[344393878,1733409033132,-500.0,7.498e-05,2]
[344393879,1733409033141,-504.47141382,7.498e-05,2]
[344393880,1733409033151,-500.0,7.498e-05,2]
[344393881,1733409033160,-500.0,7.498e-05,2]
[344393882,1733409033170,-500.847723,7.498e-05,2]
[344393883,1733409033180,-500.0,7.498e-05,2]
[344393884,1733409033189,-500.0,7.498e-05,2]
[344393885,1733409033199,-500.0,7.498e-05,2]
[344393886,1733409033209,-500.0,7.498e-05,2]
[344393887,1733409033219,-500.0,7.498e-05,2]
[344393888,1733409033229,-500.0,7.498e-05,2]
[344393889,1733409033238,-500.0,7.498e-05,2]
[344393890,1733409033248,-500.0,7.498e-05,2]
[344393891,1733409033258,-500.72563968,7.498e-05,2]
[344393892,1733409033268,-500.0,7.498e-05,2]
[344393893,1733409033278,-500.0,7.498e-05,2]
[344393894,1733409033288,-500.0,7.498e-05,2]
[344393895,1733409033298,-500.0,7.498e-05,2]
[344393896,1733409033308,-500.0,7.498e-05,2]
[344393897,1733409033319,-500.0,7.498e-05,2]
[344393898,1733409033329,-500.0,7.498e-05,2]
[344393899,1733409033339,-500.0,7.498e-05,2]
[344393900,1733409033348,-500.0,7.498e-05,2]
[344393901,1733409033358,-218.00599292,7.498e-05,2]
[344393902,1733409033367,-500.0,7.498e-05,2]
[344393903,1733409033378,-500.0,7.498e-05,2]
[344393904,1733409033388,-500.0,7.498e-05,2]
[344393905,1733409033398,-500.0,7.498e-05,2]
[344393906,1733409033408,-500.0,7.498e-05,2]
[344393907,1733409033419,-500.0,7.498e-05,2]
[344393908,1733409033432,-500.0,7.498e-05,2]
[344393909,1733409033442,-500.0,7.498e-05,2]
[344393910,1733409033452,-500.0,7.498e-05,2]
[344393911,1733409033463,-500.0,7.498e-05,2]
[344393912,1733409033474,-500.0,7.498e-05,2]
[344393913,1733409033484,-500.0,7.498e-05,2]
[344393914,1733409033494,-500.0,7.498e-05,2]
[344393915,1733409033505,-500.0,7.498e-05,2]
[344393916,1733409033516,-500.0,7.498e-05,2]
[344393917,1733409033526,-500.0,7.498e-05,2]
[344393918,1733409033536,-613.94,7.498e-05,2]
[344393919,1733409033546,-500.0,7.498e-05,2]
[344393920,1733409033556,-500.0,7.498e-05,2]
[344393921,1733409033566,-500.0,7.498e-05,2]
[344393922,1733409033577,-500.0,7.498e-05,2]
[344393923,1733409033588,-500.0,7.498e-05,2]
[344393924,1733409033598,-552.05,7.498e-05,2]
[344393925,1733409033608,-500.0,7.498e-05,2]
[344393926,1733409033618,-500.69467819,7.498e-05,2]
[344393927,1733409033628,-500.0,7.498e-05,2]
[344393928,1733409033638,-500.0,7.498e-05,2]
[344393929,1733409033648,-355.24,7.498e-05,2]
[344393930,1733409033658,-500.0,7.498e-05,2]
[344393931,1733409033667,-503.49970512,7.498e-05,2]
[344393932,1733409033677,-500.69842886,7.498e-05,2]
[344393933,1733409033687,-500.0,7.498e-05,2]
[344393934,1733409033696,-500.0,7.498e-05,2]
[344393935,1733409033706,-500.80438592,7.498e-05,2]
[344393936,1733409033715,-500.35335364,7.498e-05,2]
[344393937,1733409033724,-500.0,7.498e-05,2]
[344393938,1733409033734,-500.0,7.498e-05,2]
[344393939,1733409033744,-500.0,7.498e-05,2]
[344393940,1733409033754,-500.0,7.498e-05,2]
[344393941,1733409033764,-500.0,7.498e-05,2]
[344393942,1733409033774,-500.0,7.498e-05,2]
[344393943,1733409033784,-310.71146903,7.498e-05,2]
[344393944,1733409033793,-500.0,7.498e-05,2]
[344393945,1733409033804,-500.0,7.498e-05,2]
[344393946,1733409033814,-500.0,7.498e-05,2]
[344393947,1733409033827,-500.0,7.498e-05,2]
[344393948,1733409033836,-500.0,7.498e-05,2]
[344393949,1733409033846,-500.0,7.498e-05,2]
[344393950,1733409033855,-500.0,7.498e-05,2]
[344393951,1733409033865,-500.0,7.498e-05,2]
[344393952,1733409033875,-500.0,7.498e-05,2]
[344393953,1733409033885,-500.0,7.498e-05,2]
[344393954,1733409033894,-500.0,7.498e-05,2]
[344393955,1733409033905,-500.0,7.498e-05,2]
[344393956,1733409033915,-500.0,7.498e-05,2]
[344393958,1733409033925,-500.0,7.498e-05,2]
[344393959,1733409033935,-500.0,7.498e-05,2]
[344393960,1733409033945,-500.0,7.498e-05,2]
[344393961,1733409033954,-500.0,7.498e-05,2]
[344393962,1733409033964,-500.0,7.498e-05,2]
[344393963,1733409033974,-500.0,7.498e-05,2]
[344393964,1733409033983,-500.0,7.498e-05,2]
[344393965,1733409033993,-500.0,7.498e-05,2]
[344393966,1733409034002,-500.0,7.498e-05,2]
[344393967,1733409034012,-500.0,7.498e-05,2]
[344393968,1733409034022,-498.69292853,7.498e-05,2]
[344393969,1733409034032,-500.0,7.498e-05,2]
[344393970,1733409034042,-421.42386615,7.498e-05,2]
[344393971,1733409034052,-503.67646368,7.498e-05,2]
[344393972,1733409034061,-500.0,7.498e-05,2]
[344393973,1733409034078,-500.0,7.498e-05,2]
[344393974,1733409034088,-500.0,7.498e-05,2]
[344393975,1733409034098,-500.0,7.498e-05,2]
[344393976,1733409034107,-500.0,7.498e-05,2]
[344393977,1733409034117,-500.0,7.498e-05,2]
[344393978,1733409034127,-500.0,7.498e-05,2]
[344393979,1733409034137,-500.0,7.498e-05,2]
[344393980,1733409034147,-500.0,7.498e-05,2]
[344393981,1733409034157,-500.0,7.498e-05,2]
[344393982,1733409034167,-311.86811036,7.498e-05,2]
[344393983,1733409034176,-500.0,7.498e-05,2]
[344393984,1733409034186,-500.0,7.498e-05,2]
[344393985,1733409034196,-500.0,7.498e-05,2]
[344393986,1733409034206,-500.0,7.498e-05,2]
[344393987,1733409034216,-500.0,7.498e-05,2]
[344393988,1733409034226,-500.0,7.498e-05,2]
[344393989,1733409034236,-500.0,7.498e-05,2]
[344393990,1733409034246,-500.0,7.498e-05,2]
[344393991,1733409034255,-500.0,7.498e-05,2]
[344393992,1733409034265,-500.0,7.498e-05,2]
[344393993,1733409034274,-500.0,7.498e-05,2]
[344393994,1733409034284,-500.0,7.498e-05,2]
[344393995,1733409034294,-563.458988,7.498e-05,2]
[344393996,1733409034303,-500.0,7.498e-05,2]
[344393997,1733409034312,-500.0,7.498e-05,2]
[344393998,1733409034326,-500.0,7.498e-05,2]
[344393999,1733409034336,-500.0,7.498e-05,2]
[344394000,1733409034346,-503.76030076,7.498e-05,2]
[344394001,1733409034356,-500.0,7.498e-05,2]
[344394002,1733409034367,-386.94278473,7.498e-05,2]
[344394003,1733409034377,-278.92371441,7.498e-05,2]
[344394004,1733409034405,-221.07628559,7.498e-05,2]
[344394005,1733409034421,-582.99,7.498e-05,2]
[344394006,1733409034432,-370.98371441,7.498e-05,2]
[344394007,1733409034580,-129.01628559,7.498e-05,2]
[344394008,1733409034591,-229.33729685,7.498e-05,2]
[344394009,1733409034603,-270.66270315,7.498e-05,2]
[344394010,1733409034612,-500.0,7.498e-05,2]
[344394011,1733409034621,-500.0,7.498e-05,2]
[344394012,1733409034631,-500.0,7.498e-05,2]
[344394013,1733409034640,-501.43600378,7.498e-05,2]
[344394014,1733409034650,-500.0,7.498e-05,2]
[344394015,1733409034659,-500.0,7.498e-05,2]
[344394016,1733409034669,-500.0,7.498e-05,2]
[344394017,1733409034678,-500.0,7.498e-05,2]
[344394018,1733409034688,-500.0,7.498e-05,2]
[344394019,1733409034697,-500.0,7.498e-05,2]
[344394020,1733409034707,-500.0,7.498e-05,2]
[344394021,1733409034716,-501.35156672,7.498e-05,2]
[344394022,1733409034726,-500.7936977,7.498e-05,2]
[344394023,1733409034736,-500.0,7.498e-05,2]
[344394024,1733409034746,-500.0,7.498e-05,2]